Cogmind - Beta 16.1 @@@ ROGUE MODE // 2026.04.11 @ 13:08:02 Player: beans Result: Destroyed by G-67 Veteran with Field Laser Performance ------------- Evolutions (6) 3000 Regions Visited (22) 4400 Robots Destroyed (130) 650 Value Destroyed (4252) 4252 Prototype IDs (57) 1140 Alien Tech Used (1) 200 Bonus (3161) 3161 TOTAL SCORE: 16803 Bonus ------- Pacifist 270 High Alert Combat Kills 162 Follower Combat Kills 1954 Entered DSFs 500 Aligned with FarCom 300 Met Data Miner 300 Met Zhirov 300 Friendly Fire -625 Cogmind --------- Core Integrity 0/1150 Matter 300/300 Energy 809/840 System Corruption 0% Temperature Hot (292) Movement Walking (120) Location -3/Proximity Caves Parts ------- > --- POWER (2) -------- Heavy Antimatter Reactor > --- PROPULSION (6) --- Advanced Myomer Leg Advanced Myomer Leg Advanced Myomer Leg > --- UTILITY (8) ------ Advanced Energy Well Experimental Signal Interpreter Armor Integrity Analyzer Improved Hacking Suite Advanced Hacking Suite Advanced Dynamic Insulation System Improved Corruption Screen > --- WEAPON (3) ------- Quantum Rifle Matter Neutralizer > --- INVENTORY (5) ---- Advanced Thermal Shield Transdimensional Reconstructor Quantum Rifle CPS Tube (1) Peak State ------------ > --- POWER ------------ Light Antimatter Reactor Heavy Antimatter Reactor > --- PROPULSION ------- Advanced Myomer Leg Advanced Myomer Leg Advanced Myomer Leg > --- UTILITY ---------- Advanced Energy Well Experimental Signal Interpreter Armor Integrity Analyzer Improved Hacking Suite Advanced Hacking Suite Advanced Dynamic Insulation System Improved Corruption Screen > --- WEAPON ----------- Quantum Rifle Quantum Rifle Railgun > --- INVENTORY -------- Advanced Thermal Shield Transdimensional Reconstructor Matter Neutralizer CPS Tube [Rating: 110] Favorites ----------- Power Cold Fusion Reactor Engine Cooled Ion Engine Power Core Light Fission Core Reactor Cold Fusion Reactor Propulsion Carbon-fiber Leg Treads Heavy Treads Leg Carbon-fiber Leg Wheel Compact Wheel Flight Unit Nuclear Pulse Thruster Utility Advanced Visual Processing Unit Device Improved Heat Sink Storage Advanced Energy Well Processor Advanced Visual Processing Unit Hackware Improved Hacking Suite Protection Improved Core Shielding Weapon Gatling Laser Energy Gun Gatling Laser Energy Cannon Heavy Plasma Cannon Ballistic Gun Gauss Rifle Ballistic Cannon Hardcell Cannon Launcher Long-range Missile Launcher Special Weapon CPS Tube Slashing Weapon Power Sword Build | -11 -10 -10 -10 -9 -8 -8 -8 -8 -6 -6 -6 -6 -6 -6 -5 -5 -5 -4 -4 -4 -4 -3 ------- Run | Yrd Mat Min Exi Min Mat Sto Rec Scr Fac Was Fac Low Low Dat Pro Fac DSF Fac Upp Upp Zhi Pro Slots Evolved 12 | . . . . . 4 . . . 4 . . . . . . 2 . 2 . . . . Power 1 | . . . . . . . . . 1 . . . . . . . . . . . . . Propulsion 4 | . . . . . 2 . . . 1 . . . . . . 1 . . . . . . Utility 6 | . . . . . 1 . . . 2 . . . . . . 1 . 2 . . . . Weapon 1 | . . . . . 1 . . . . . . . . . . . . . . . . . Parts Attached 104 | 3 . . . . 13 7 1 3 9 3 14 2 2 . 8 . 5 11 3 8 10 2 Power 17 | 1 . . . . 2 1 . 1 1 1 3 . . . 2 . . . 1 2 2 . Engine 6 | 1 . . . . 1 1 . . 1 . . . . . 2 . . . . . . . Core 8 | . . . . . 1 . . 1 . 1 2 . . . . . . . 1 2 . . Reactor 3 | . . . . . . . . . . . 1 . . . . . . . . . 2 . Propulsion 26 | 2 . . . . 2 3 . 1 1 1 3 . . . 2 . 1 5 . 2 3 . Treads 1 | . . . . . . . . . . . . . . . 1 . . . . . . . Leg 11 | 2 . . . . 2 3 . . . . . . . . 1 . . . . . 3 . Wheel 1 | . . . . . . . . . . . . . . . . . 1 . . . . . Hover . | . . . . . . . . . . . . . . . . . . . . . . . Flight 13 | . . . . . . . . 1 1 1 3 . . . . . . 5 . 2 . . Utility 26 | . . . . . 3 . 1 1 . 1 2 . 1 . 3 . 4 4 . 2 4 . Device 12 | . . . . . 3 . . 1 . 1 1 . . . 1 . 2 1 . 1 1 . Storage 2 | . . . . . . . . . . . . . . . . . . 1 . . 1 . Processor 6 | . . . . . . . 1 . . . 1 . . . 2 . . 1 . 1 . . Hackware 4 | . . . . . . . . . . . . . . . . . 2 1 . . 1 . Protection 2 | . . . . . . . . . . . . . 1 . . . . . . . 1 . Artifact . | . . . . . . . . . . . . . . . . . . . . . . . Weapon 35 | . . . . . 6 3 . . 7 . 6 2 1 . 1 . . 2 2 2 1 2 Energy Gun 10 | . . . . . 3 . . . 1 . 3 . . . . . . . . 2 1 . Energy Cannon 5 | . . . . . . 1 . . 1 . . 1 . . . . . . 1 . . 1 Ballistic Gun 8 | . . . . . 2 1 . . 2 . 2 . . . . . . . . . . 1 Ballistic Cannon 2 | . . . . . . . . . . . . 1 . . . . . 1 . . . . Launcher 5 | . . . . . 1 1 . . 1 . 1 . 1 . . . . . . . . . Special Weapon 2 | . . . . . . . . . 2 . . . . . . . . . . . . . Impact Weapon . | . . . . . . . . . . . . . . . . . . . . . . . Slashing Weapon 3 | . . . . . . . . . . . . . . . 1 . . 1 1 . . . Piercing Weapon . | . . . . . . . . . . . . . . . . . . . . . . . Special Melee Weapon . | . . . . . . . . . . . . . . . . . . . . . . . Unidentified Prototypes 15 | . . . . . 1 3 . . 1 . 3 . . . . . . 2 . . 5 . Parts Lost 50 | . 1 . . . 2 3 2 . 4 . 3 . 1 . 14 . 3 . 2 12 . 3 Power 10 | . 1 . . . 1 . . . 1 . 1 . 1 . 3 . . . . 1 . 1 Propulsion 17 | . . . . . . 1 1 . 1 . 2 . . . 4 . 2 . 2 4 . . Utility 11 | . . . . . . 1 1 . 1 . . . . . 2 . 1 . . 4 . 1 Weapon 12 | . . . . . 1 1 . . 1 . . . . . 5 . . . . 3 . 1 Highest Loss Streak 9 | . 1 . . . 1 1 2 . 2 . 3 . 1 . 7 . 3 . 1 9 . 3 To Critical Strikes 1 | . . . . . 1 . . . . . . . . . . . . . . . . . Average Backups 3 | . 1 2 3 4 3 3 2 3 3 3 3 4 4 4 3 4 4 4 4 3 4 4 Power . | . 1 1 1 1 . . . . . . . . . . . . . . . . . . Propulsion . | . . . . . . . . . . . . . . . . . . . . . . . Utility . | . . . . . . 1 1 . . . . . . . . . . . . 1 1 1 Weapon 1 | . . 1 2 3 2 2 1 1 1 1 2 2 2 2 1 2 2 2 1 . 1 1 Tool/Special . | . . . . . . . . . . . . . . . . . . . . . . . Unused Backups 6 | . . 1 . . . 2 1 . . . . . . . . . . . . . 1 1 Power 2 | . . . . . . 1 . . . . . . . . . . . . . . 1 . Propulsion . | . . . . . . . . . . . . . . . . . . . . . . . Utility . | . . . . . . . . . . . . . . . . . . . . . . . Weapon 3 | . . 1 . . . 1 1 . . . . . . . . . . . . . . . Tool/Special 1 | . . . . . . . . . . . . . . . . . . . . . . 1 Average Slot Usage (%) 66 | . 42 25 . . 36 84 77 87 34 30 76 79 79 69 60 35 37 59 72 53 65 77 Engine 2 | . 14 . . . . 6 9 2 . . . . 4 6 4 . . . . . . . Core 2 | . . . . . 2 2 . 6 3 2 7 6 . . . . . . . 2 . . Reactor 1 | . . . . . . . . . . . 4 6 6 6 1 . . . . . 6 9 Leg 10 | . 28 25 . . 7 26 27 27 1 . . . . . 3 . . . . . 12 15 Flight 8 | . . . . . . . . . 9 8 21 20 20 20 10 5 3 16 22 6 . . Device 9 | . . . . . 9 22 9 15 4 5 12 13 12 13 5 5 4 4 5 3 2 5 Processor 10 | . . . . . . . 4 9 6 6 12 13 13 13 18 23 23 20 21 19 21 20 Hackware 2 | . . . . . . . . . . . . . . . . . . 14 15 12 9 10 Energy Gun 9 | . . . . . 5 18 18 18 . 2 7 13 13 6 4 . . . . 1 6 9 Energy Cannon 1 | . . . . . . . . . . . . 4 5 2 4 . . . 2 1 . . Ballistic Gun 3 | . . . . . 9 7 9 9 5 . 7 1 . . . . . . . . . . Peak Build Rating 110 | 3 3 2 2 2 34 47 37 44 56 52 84 80 80 78 78 32 40 94 106 100 107 110 Average Rating 51 | 2 2 1 . 2 16 34 31 38 31 38 74 79 78 66 53 32 31 73 92 65 89 106 On Entrance 41 | . 3 2 . 2 2 34 37 32 40 33 50 79 80 78 78 32 32 32 94 82 31 107 Avg Prop Armor Cover (%) 13 | . . . . . . . . . 8 14 . . . . 9 . 7 19 15 14 . . Naked Turns 170 | . . 39 108 10 13 . . . . . . . . . . . . . . . . . Heaviest Build 53 | 5 5 . . . 22 25 22 29 33 31 47 53 53 48 51 6 6 10 19 22 49 49 Greatest Support 90 | 20 20 20 3 3 36 63 63 45 45 22 34 28 28 28 70 6 16 37 44 15 90 90 Greatest Overweight (x) 4 | . . . . . 2 1 . . 1 3 2 1 1 1 4 . 1 3 1 3 . . Average Overweight (x) . | . . . . . . . . . . . . 1 1 . . . . . . . . . Largest Inventory Capacity 5 | 5 5 5 5 5 5 5 5 5 5 5 5 5 5 5 5 5 5 5 5 5 5 5 Average Capacity 5 | 5 5 5 5 5 5 5 5 5 5 5 5 5 5 5 5 5 5 5 5 5 5 5 Most Carried 5 | 3 1 3 5 5 5 5 5 5 5 5 5 5 5 5 5 5 5 5 5 5 5 5 Average Carried 4 | . 1 2 3 5 4 4 3 4 4 4 4 5 5 5 4 5 5 5 4 4 4 4 Final Capacity 5 | 5 5 5 5 5 5 5 5 5 5 5 5 5 5 5 5 5 5 5 5 5 5 5 Final Carried 5 | 1 1 3 5 5 5 5 3 5 5 5 5 5 5 5 5 5 5 5 5 5 5 4 Class Distribution -------------------- 27% | Commander-Skirmisher 19% | Mutant 16% | Gunner 15% | Hacker-Mutant 5% | Commander-Mutant 5% | Scavenger-Gunner Dominant Class ---------------- Mutant | -10/Materials Mutant | -10/Mines Mutant | -10/Exiles Mutant | -9/Mines Mutant | -8/Materials Commander-Skirmisher | -8/Storage Commander-Skirmisher | -8/Recycling Commander-Skirmisher | -8/Scraptown Commander-Mutant | -6/Factory Mutant | -6/Waste Scavenger-Gunner | -6/Factory Gunner | -6/Lower Caves Gunner | -6/Lower Caves Mutant | -6/Data Miner Mutant | -5/Proximity Caves Mutant | -5/Factory Mutant | -5/DSF Hacker-Mutant | -4/Factory Hacker-Mutant | -4/Upper Caves Hacker-Mutant | -4/Upper Caves Hacker-Mutant | -4/Zhirov Hacker-Mutant | -3/Proximity Caves Resources | -11 -10 -10 -10 -9 -8 -8 -8 -8 -6 -6 -6 -6 -6 -6 -5 -5 -5 -4 -4 -4 -4 -3 ----------- Run | Yrd Mat Min Exi Min Mat Sto Rec Scr Fac Was Fac Low Low Dat Pro Fac DSF Fac Upp Upp Zhi Pro Matter Collected 3040 | 185 . 40 . . 447 240 46 . 185 296 322 69 350 . 346 . 9 154 50 81 88 132 Remotely . | . . . . . . . . . . . . . . . . . . . . . . . Salvage Created 5137 | . . . . . 607 1075 559 . 261 259 584 39 548 . 418 . . 156 58 262 186 125 Parts 258 | . . . . . 43 68 27 . 15 1 35 1 8 . 12 . . 2 1 18 23 4 Haulers Intercepted 7 | . . . . . 1 4 . . 1 . 1 . . . . . . . . . . . Recyclers Shooed 7 | . . . . . 1 3 2 . . . 1 . . . . . . . . . . . Parts Field Recycled . | . . . . . . . . . . . . . . . . . . . . . . . Retrieved Matter . | . . . . . . . . . . . . . . . . . . . . . . . Parts Self-Destructed 81 | . . . . . . . . . . . . 1 13 . 29 . . . . 19 17 2 Prevented 2 | . . . . . . . . . . . . 2 . . . . . . . . . . Parts Restored . | . . . . . . . . . . . . . . . . . . . . . . . Kills | -11 -10 -10 -10 -9 -8 -8 -8 -8 -6 -6 -6 -6 -6 -6 -5 -5 -5 -4 -4 -4 -4 -3 ------- Run | Yrd Mat Min Exi Min Mat Sto Rec Scr Fac Was Fac Low Low Dat Pro Fac DSF Fac Upp Upp Zhi Pro Combat Hostiles Destroyed 85 | . . . . . 17 20 7 . 1 1 3 . 15 . 10 . . . 1 8 . 2 Melee 1 | . . . . . . . . . . . . . . . . . . . 1 . . . Guns 42 | . . . . . 7 19 7 . . . 3 . . . 1 . . . . 4 . 1 Cannons 6 | . . . . . . . . . 1 . . . 1 . 3 . . . . 1 . . AOE 32 | . . . . . 10 . . . . 1 . . 13 . 5 . . . . 3 . . Classes Destroyed 19 | . . . . . 8 2 1 . 1 1 . 1 3 . 2 . . . . . . . Worker 12 | . . . . . 2 5 1 . 2 . 2 . . . . . . . . . . . Builder 7 | . . . . . 2 1 . . 2 . 2 . . . . . . . . . . . Tunneler 3 | . . . . . . 1 . . . . 2 . . . . . . . . . . . Hauler 7 | . . . . . 1 4 . . 1 . 1 . . . . . . . . . . . Recycler 5 | . . . . . . 1 2 . . . 1 . . . . . . 1 . . . . Mechanic 1 | . . . . . . . . . . . . . . . 1 . . . . . . . Operator 2 | . . . . . . . . . 1 . 1 . . . . . . . . . . . Watcher 5 | . . . . . 3 2 . . . . . . . . . . . . . . . . Swarmer 20 | . . . . . 4 8 . . . . . . . . 2 . . . . 6 . . Grunt 32 | . . . . . 9 5 1 . 2 . . . 7 . 4 . . . . 2 . 2 Brawler 3 | . . . . . . . . . . . . . 2 . 1 . . . . . . . Duelist 3 | . . . . . . . . . . . . . 3 . . . . . . . . . Sentry 18 | . . . . . 3 7 4 . 1 . 1 . 2 . . . . . . . . . Hunter 2 | . . . . . 1 . . . . . 1 . . . . . . . . . . . Programmer 4 | . . . . . . . 2 . . . 1 . . . . . . . 1 . . . Behemoth 1 | . . . . . . . . . . . . . 1 . . . . . . . . . Compactor 1 | . . . . . . . . . . 1 . . . . . . . . . . . . Enhanced Grunt 1 | . . . . . . . . . . . . . . . 1 . . . . . . . Samaritan 1 | . . . . . . . . . . . . 1 . . . . . . . . . . Thug 2 | . . . . . . . . . . . . . . . 2 . . . . . . . Mutant 1 | . . . . . . . . . . . . . . . 1 . . . . . . . Best Kill Streak 8 | . . . . . 8 7 5 . 3 1 3 . 7 . 5 . . 1 1 4 . 2 Combat Bots Only 7 | . . . . . 6 6 4 . 1 1 1 . 7 . 3 . . . 1 4 . 2 Max Kills in Single Turn 4 | . . . . . 3 3 2 . 4 1 2 1 2 . 2 . . 1 1 2 . 1 Gunslinging 1 | . . . . . . 1 1 . . . . . . . . . . . . . . . Exploded 3 | . . . . . 3 . . . . 1 . . 2 . 2 . . . . 2 . . Melee 1 | . . . . . . . . . . . . . . . . . . . 1 . . . Uniques/NPCs Destroyed . | . . . . . . . . . . . . . . . . . . . . . . . Combat | -11 -10 -10 -10 -9 -8 -8 -8 -8 -6 -6 -6 -6 -6 -6 -5 -5 -5 -4 -4 -4 -4 -3 -------- Run | Yrd Mat Min Exi Min Mat Sto Rec Scr Fac Was Fac Low Low Dat Pro Fac DSF Fac Upp Upp Zhi Pro Hostile Shots Fired 629 | . 23 11 . . 38 68 20 . 56 1 46 . 36 . 88 . 49 . 58 91 . 44 Missed 224 | . 9 3 . . 14 20 3 . 27 . 16 . 13 . 24 . 15 . 29 41 . 10 Intercepted 1 | . . . . . . . . . . . . . . . . . 1 . . . . . Hits 405 | . 14 8 . . 24 48 17 . 29 1 30 . 23 . 64 . 34 . 29 50 . 34 Melee 27 | . . . . . . . . . . 1 . . . . 14 . 12 . . . . . Projectile 378 | . 14 8 . . 24 48 17 . 29 . 30 . 23 . 50 . 22 . 29 50 . 34 AOE 10 | . . 4 . . . . . . . . . . . . . . 6 . . . . . Critical Strikes 20 | . . . . . 4 . 1 . 1 . 2 . 1 . 3 . 3 . 2 1 . 2 Damage Taken 7884 | . 167 256 . . 363 731 254 . 473 59 476 . 378 . 1781 . 855 . 472 923 . 696 Core 2790 | . 33 190 . . 94 206 28 . 130 59 83 . 155 . 345 . 730 . 167 400 . 170 Absorbed by Shields . | . . . . . . . . . . . . . . . . . . . . . . . Reduced by Siege Mode 52 | . . . . . . . . . . . . . . . 52 . . . . . . . Regen/Repaired (Parts) 221 | . . . . . . . . . . 45 88 . 88 . . . . . . . . . Core Remaining (%) 37 | 100 . . . 10 . . . 40 . . . . . . 9 . 27 . . . . . Volleys Fired 255 | . . . . . 40 48 17 . 25 9 33 6 22 . 26 . . . 1 13 7 8 Largest 3 | . . . . . 3 3 2 . 2 1 3 3 3 . 3 . . . 1 2 2 3 Hottest 240 | . . . . . 240 240 160 . 100 100 163 220 220 . 220 . . . 100 188 188 234 Shots Fired 482 | . . . . . 63 138 34 . 28 9 71 18 38 . 39 . . . 1 13 11 19 Gun 370 | . . . . . 43 137 34 . 10 . 71 12 21 . 13 . . . . 9 8 12 Cannon 58 | . . . . . . 1 . . 15 1 . 6 6 . 17 . . . 1 4 . 7 Launcher 51 | . . . . . 20 . . . 3 8 . . 11 . 9 . . . . . . . Special 3 | . . . . . . . . . . . . . . . . . . . . . 3 . Kinetic 106 | . . . . . 28 35 4 . 10 . 22 . . . . . . . . . . 7 Thermal 315 | . . . . . 15 103 30 . 8 1 49 18 27 . 30 . . . 1 13 8 12 Explosive 51 | . . . . . 20 . . . 3 8 . . 11 . 9 . . . . . . . Electromagnetic 7 | . . . . . . . . . 7 . . . . . . . . . . . . . Robot Hit Streak 14 | . . . . . 10 13 11 . 8 5 14 3 12 . 7 . . . . 3 6 5 Robot Miss Streak 10 | . . . . . 5 10 4 . 3 1 4 1 6 . 9 . . . 1 4 1 2 Penetration Max 1 | . . . . . 1 1 1 . 1 . 1 . . . . . . . . . . . Secondary Targets 7 | . . . . . . 5 1 . . . 1 . . . . . . . . . . . Max Gunslinging Chain 1 | . . . . . . 1 1 . . . 1 . . . . . . . . . . . Shots Hit Robots 282 | . . . . . 36 83 30 . 10 5 37 4 21 . 24 . . 2 4 6 8 12 Core Hits 239 | . . . . . 41 55 21 . 12 5 22 2 34 . 28 . . . 1 8 4 6 Critical Kills 4 | . . . . . 1 . . . . . . . 1 . 1 . . . . . . 1 Critical Parts Destroyed 2 | . . . . . . 1 . . 1 . . . . . . . . . . . . . Critical Strikes 9 | . . . . . 1 1 . . 2 . . . 1 . 2 . . . 1 . . 1 Meltdown 3 | . . . . . . . . . . . . . 1 . 1 . . . . . . 1 Destroy 3 | . . . . . 1 1 . . 1 . . . . . . . . . . . . . Corrupt 1 | . . . . . . . . . 1 . . . . . . . . . . . . . Sever 2 | . . . . . . . . . . . . . . . 1 . . . 1 . . . Melee Attacks 20 | . . . . . . . . . . . . . . . 4 . . 2 13 1 . . Impact . | . . . . . . . . . . . . . . . . . . . . . . . Slashing 20 | . . . . . . . . . . . . . . . 4 . . 2 13 1 . . Piercing . | . . . . . . . . . . . . . . . . . . . . . . . Sneak Attacks 1 | . . . . . . . . . . . . . . . . . . 1 . . . . Combat Hostiles . | . . . . . . . . . . . . . . . . . . . . . . . Follow-up Attacks . | . . . . . . . . . . . . . . . . . . . . . . . Damage Inflicted 13765 | . . . . . 1865 1832 716 . 908 1356 1010 114 1984 . 2585 . . 112 163 501 221 398 Guns 5226 | . . . . . 528 1832 716 . 162 . 1010 51 229 . 177 . . . . 115 221 185 Cannons 1050 | . . . . . . . . . 174 . . 63 99 . 419 . . . . 82 . 213 Explosions 7060 | . . . . . 1337 . . . 572 1356 . . 1656 . 1894 . . . . 245 . . Melee 425 | . . . . . . . . . . . . . . . 95 . . 112 163 55 . . Ramming 4 | . . . . . . . . . . . . . . . . . . . . 4 . . Kinetic 1304 | . . . . . 370 225 106 . 162 . 313 . . . . . . . . . . 128 Thermal 5588 | . . . . . 158 1607 610 . 303 51 697 114 328 . 787 . . . . 442 221 270 Explosive 6379 | . . . . . 1337 . . . 378 1305 . . 1656 . 1703 . . . . . . . Electromagnetic 65 | . . . . . . . . . 65 . . . . . . . . . . . . . Impact . | . . . . . . . . . . . . . . . . . . . . . . . Slashing 425 | . . . . . . . . . . . . . . . 95 . . 112 163 55 . . Piercing . | . . . . . . . . . . . . . . . . . . . . . . . Highest Corruption 28 | . . . . . . . . . . 21 21 21 21 21 28 . . . . . . . Average Corruption 21 | . . . . . . . . . . 11 21 21 21 21 26 . . . . . . . Corruption Purged . | . . . . . . . . . . . . . . . . . . . . . . . Corruption Blocked 6 | . . . . . . . . . . . . . . . 3 . . . 1 2 . . Effects 179 | . . . . . . . . . . 8 41 40 42 3 45 . . . . . . . Message Errors 40 | . . . . . . . . . . 2 10 11 5 1 11 . . . . . . . Matter Fused 42 | . . . . . . . . . . 1 10 9 10 . 12 . . . . . . . Heat Flow Errors 17 | . . . . . . . . . . 1 3 3 6 1 3 . . . . . . . Energy Discharges 22 | . . . . . . . . . . . 6 4 5 . 7 . . . . . . . Parts Rejected 5 | . . . . . . . . . . 2 1 . 1 . 1 . . . . . . . Parts Fused 1 | . . . . . . . . . . . . . . . 1 . . . . . . . Data Loss (minor) 27 | . . . . . . . . . . 1 4 7 10 . 5 . . . . . . . Data Loss (major) 11 | . . . . . . . . . . 1 3 3 1 1 2 . . . . . . . Misfires 4 | . . . . . . . . . . . 1 1 1 . 1 . . . . . . . Alerts 5 | . . . . . . . . . . . 1 2 2 . . . . . . . . . Misdirections 1 | . . . . . . . . . . . 1 . . . . . . . . . . . Weapon Failures 4 | . . . . . . . . . . . 1 . 1 . 2 . . . . . . . Overload Shots . | . . . . . . . . . . . . . . . . . . . . . . . Overflow Damage 346 | . . . . . 69 . . . 116 . . . 6 . 59 . . 42 . 54 . . Projectiles 36 | . . . . . . . . . . . . . . . 36 . . . . . . . Explosions 268 | . . . . . 69 . . . 116 . . . 6 . 23 . . . . 54 . . Melee 42 | . . . . . . . . . . . . . . . . . . 42 . . . . Knockbacks . | . . . . . . . . . . . . . . . . . . . . . . . Impact . | . . . . . . . . . . . . . . . . . . . . . . . Kinetic . | . . . . . . . . . . . . . . . . . . . . . . . Secondary . | . . . . . . . . . . . . . . . . . . . . . . . Self-Inflicted Damage 303 | . . . . . . . . . 157 . . . 36 . 1 . . . . 109 . . Shots 6 | . . . . . . . . . 2 . . . 1 . 1 . . . . 2 . . Rammed 2 | . . . . . . . . . . . . . . . . . . . . 2 . . Targets Rammed 2 | . . . . . . . . . . . . . . . . . . . . 2 . . Kicked . | . . . . . . . . . . . . . . . . . . . . . . . Crushed . | . . . . . . . . . . . . . . . . . . . . . . . Highest Temperature 414 | . . . . . 130 359 84 . 98 180 236 414 241 81 206 . . . . 66 228 280 Average Temperature 56 | . . . . . 55 40 25 . 38 58 60 118 82 56 61 . . . . 25 101 71 Received Heat Transfer 1657 | . 93 57 . . 225 315 63 . 12 . 121 . 105 . 378 . 60 . . 36 . 192 Siege Activations 1 | . . . . . . . . . . . . . . . 1 . . . . . . . Total Turns 13 | . . . . . . . . . . . . . . . 13 . . . . . . . Longest Duration 13 | . . . . . . . . . . . . . . . 13 . . . . . . . Martial Activations . | . . . . . . . . . . . . . . . . . . . . . . . Shielding Activations . | . . . . . . . . . . . . . . . . . . . . . . . Robots Disrupted . | . . . . . . . . . . . . . . . . . . . . . . . Combat Hostiles . | . . . . . . . . . . . . . . . . . . . . . . . Robots Corrupted . | . . . . . . . . . . . . . . . . . . . . . . . Combat Hostiles . | . . . . . . . . . . . . . . . . . . . . . . . Parts Fried . | . . . . . . . . . . . . . . . . . . . . . . . Impact Corruptions . | . . . . . . . . . . . . . . . . . . . . . . . Robots Melted 4 | . . . . . . 1 . . . . . . 1 . 1 . . . . . . 1 Combat Hostiles 4 | . . . . . . 1 . . . . . . 1 . 1 . . . . . . 1 Parts Melted 20 | . . . . . . 3 2 . 1 . 2 3 5 . 2 . . . . 2 . . Heat Transferred 9339 | . . . . . 325 3500 1319 . 260 80 1036 174 483 . 1059 . . . . 548 259 296 Parts Sabotaged . | . . . . . . . . . . . . . . . . . . . . . . . Parts Stolen . | . . . . . . . . . . . . . . . . . . . . . . . Parts Stripped . | . . . . . . . . . . . . . . . . . . . . . . . Power Chain Reactions . | . . . . . . . . . . . . . . . . . . . . . . . Alert | -11 -10 -10 -10 -9 -8 -8 -8 -8 -6 -6 -6 -6 -6 -6 -5 -5 -5 -4 -4 -4 -4 -3 ------- Run | Yrd Mat Min Exi Min Mat Sto Rec Scr Fac Was Fac Low Low Dat Pro Fac DSF Fac Upp Upp Zhi Pro Maximum Alert Level 3 | . . . . . 2 3 1 . 1 . 3 . . . . . . . . . . . Low Security (%) 40 | 100 100 100 . 100 23 3 . . 89 100 7 . . . . 100 100 100 . . . . Level 1 43 | . . . . . 55 69 100 . 10 . 35 . . . . . . . . . . . Level 2 6 | . . . . . 20 13 . . . . 12 . . . . . . . . . . . Level 3 9 | . . . . . . 12 . . . . 44 . . . . . . . . . . . Level 4 . | . . . . . . . . . . . . . . . . . . . . . . . Level 5 . | . . . . . . . . . . . . . . . . . . . . . . . High Security . | . . . . . . . . . . . . . . . . . . . . . . . Max Security . | . . . . . . . . . . . . . . . . . . . . . . . Peak Influence 884 | . . 43 . . 424 760 390 . 254 78 884 . . . . 113 124 65 . . . . Initial 289 | . . . . . . 165 289 . . 78 . . . . . 113 79 65 . . . . Average 251 | . . 5 . . 307 393 306 . 51 38 528 . . . . 113 83 15 . . . . Influence Increases 5696 | . . 98 . . 591 1067 532 . 447 36 1363 . 539 . 548 . 75 5 60 275 10 50 Destroy 0b10 Robot/C 2540 | . . 40 . . 340 460 160 . 100 . 420 . 400 . 400 . . . 20 160 . 40 Destroy 0b10 Robot/NC 255 | . . . . . 40 70 30 . 30 . 65 . . . 5 . . 5 . . 10 . Destroy Leader 464 | . . 10 . . 88 122 . . 42 . 112 . 30 . 30 . . . 10 10 . 10 Allied During Kill 1159 | . . 3 . . . 248 84 . 58 . 544 . 109 . 113 . . . . . . . Successful Hack 49 | . . . . . . 14 16 . 5 . 14 . . . . . . . . . . . Select Force Hacks 270 | . . . . . . 30 240 . . . . . . . . . . . . . . . Disable Machine 300 | . . . . . 15 90 . . 105 . 90 . . . . . . . . . . . Destroy Structure 344 | . . . . . 78 18 2 . 107 36 103 . . . . . . . . . . . Partial Spotted 30 | . . . . . . 15 . . . . 15 . . . . . . . . . . . Lose Combat Pursuer 285 | . . 45 . . 30 . . . . . . . . . . . 75 . 30 105 . . Influence Decreases 5666 | . . 63 35 . 200 716 927 347 222 261 592 666 406 238 367 68 64 129 60 251 34 20 Entered New Map 1938 | . . . 35 . . 226 453 347 . 147 . 286 21 238 . 68 34 59 . . 24 . Time Decay 3045 | . . 63 . . 180 440 434 . 92 114 362 380 375 . 259 . . 70 50 206 10 10 Lost Part 305 | . . . . . 20 30 20 . 30 . 30 . 10 . 70 . 30 . 10 45 . 10 Lost Ally 378 | . . . . . . 20 20 . 100 . 200 . . . 38 . . . . . . . Squads Dispatched 23 | . 1 . . . 3 4 . . 5 . 6 . . . 1 . 2 1 . . . . Investigation 4 | . 1 . . . 1 1 . . . . . . . . . . . 1 . . . . Extermination 4 | . . . . . . . . . 2 . 2 . . . . . . . . . . . Reinforcement 9 | . . . . . 2 . . . 2 . 3 . . . . . 2 . . . . . Assault 2 | . . . . . . . . . . . 1 . . . 1 . . . . . . . Garrison 4 | . . . . . . 3 . . 1 . . . . . . . . . . . . . Intercept . | . . . . . . . . . . . . . . . . . . . . . . . Searches Triggered . | . . . . . . . . . . . . . . . . . . . . . . . Construction Impeded 2 | . . . . . 1 . . . 1 . . . . . . . . . . . . . Haulers Reinforced 2 | . . . . . . . . . 1 . 1 . . . . . . . . . . . Active Scanning Responses . | . . . . . . . . . . . . . . . . . . . . . . . Cargo Convoy Interrupts . | . . . . . . . . . . . . . . . . . . . . . . . Stealth | -11 -10 -10 -10 -9 -8 -8 -8 -8 -6 -6 -6 -6 -6 -6 -5 -5 -5 -4 -4 -4 -4 -3 --------- Run | Yrd Mat Min Exi Min Mat Sto Rec Scr Fac Was Fac Low Low Dat Pro Fac DSF Fac Upp Upp Zhi Pro Distress Signals 4 | . . . . . 2 1 . . . . 1 . . . . . . . . . . . Communications Jammed . | . . . . . . . . . . . . . . . . . . . . . . . Distress Signals . | . . . . . . . . . . . . . . . . . . . . . . . Times Spotted 183 | . 5 6 . . 22 25 7 . 6 6 19 . 19 . 29 . 10 . 6 19 . 4 Peak Tracking Total 8 | . 5 4 . . 5 5 4 . 2 5 7 . 8 . 7 . 6 . 3 5 . 4 Tactical Retreats 9 | . . 1 . . 2 . . . . . . . . . . . 2 . 1 3 . . Traps | -11 -10 -10 -10 -9 -8 -8 -8 -8 -6 -6 -6 -6 -6 -6 -5 -5 -5 -4 -4 -4 -4 -3 ------- Run | Yrd Mat Min Exi Min Mat Sto Rec Scr Fac Was Fac Low Low Dat Pro Fac DSF Fac Upp Upp Zhi Pro Traps Triggered 7 | . 1 . . . 1 3 . . 1 . 1 . . . . . . . . . . . Indirectly . | . . . . . . . . . . . . . . . . . . . . . . . Trap Hack Attempts . | . . . . . . . . . . . . . . . . . . . . . . . Triggered . | . . . . . . . . . . . . . . . . . . . . . . . Disarmed . | . . . . . . . . . . . . . . . . . . . . . . . Reprogrammed . | . . . . . . . . . . . . . . . . . . . . . . . Reused . | . . . . . . . . . . . . . . . . . . . . . . . Traps Extracted . | . . . . . . . . . . . . . . . . . . . . . . . Installed . | . . . . . . . . . . . . . . . . . . . . . . . Triggered . | . . . . . . . . . . . . . . . . . . . . . . . Machines | -11 -10 -10 -10 -9 -8 -8 -8 -8 -6 -6 -6 -6 -6 -6 -5 -5 -5 -4 -4 -4 -4 -3 ---------- Run | Yrd Mat Min Exi Min Mat Sto Rec Scr Fac Was Fac Low Low Dat Pro Fac DSF Fac Upp Upp Zhi Pro Machines Disabled 22 | . . . . . 1 6 . . 7 . 6 . 1 . . . . . . 1 . . Max in Single Turn 5 | . . . . . 1 2 . . 5 . 2 . 1 . . . . . . 1 . . Machines Repaired . | . . . . . . . . . . . . . . . . . . . . . . . Machines Dismantled . | . . . . . . . . . . . . . . . . . . . . . . . Machines Sabotaged . | . . . . . . . . . . . . . . . . . . . . . . . Overloaded Fab Kills . | . . . . . . . . . . . . . . . . . . . . . . . Hacking | -11 -10 -10 -10 -9 -8 -8 -8 -8 -6 -6 -6 -6 -6 -6 -5 -5 -5 -4 -4 -4 -4 -3 --------- Run | Yrd Mat Min Exi Min Mat Sto Rec Scr Fac Was Fac Low Low Dat Pro Fac DSF Fac Upp Upp Zhi Pro Machines Accessed 36 | . . . 1 . . 5 9 . 2 . 3 1 . 4 . 1 . 3 1 1 5 . Terminals 8 | . . . . . . 4 1 . 1 . . . . . . 1 . 1 . . . . Fabricators 4 | . . . . . . . . . 1 . 2 . . . . . . 1 . . . . Repair Stations . | . . . . . . . . . . . . . . . . . . . . . . . Recycling Units 9 | . . . . . . 1 8 . . . . . . . . . . . . . . . Scanalyzers 1 | . . . . . . . . . . . . . . . . . . 1 . . . . Garrison Access 1 | . . . . . . . . . . . 1 . . . . . . . . . . . Total Hacks 82 | . . . 1 . . 5 15 . 2 . 4 1 . 26 . 1 . 7 1 1 18 . Successful 70 | . . . 1 . . 4 11 . 1 . 3 1 . 26 . 1 . 2 1 1 18 . Failed 12 | . . . . . . 1 4 . 1 . 1 . . . . . . 5 . . . . Catastrophic . | . . . . . . . . . . . . . . . . . . . . . . . Database Lockouts . | . . . . . . . . . . . . . . . . . . . . . . . Manual 12 | . . . 1 . . 1 10 . . . . . . . . . . . . . . . Terminals 9 | . . . . . . 4 2 . 1 . . . . . . 1 . 1 . . . . Fabricators 7 | . . . . . . . . . 1 . 3 . . . . . . 3 . . . . Repair Stations . | . . . . . . . . . . . . . . . . . . . . . . . Recycling Units 14 | . . . . . . 1 13 . . . . . . . . . . . . . . . Scanalyzers 3 | . . . . . . . . . . . . . . . . . . 3 . . . . Garrison Access 1 | . . . . . . . . . . . 1 . . . . . . . . . . . Terminal Hacks 54 | . . . 1 . . 3 1 . . . . 1 . 26 . 1 . 1 1 1 18 . Record 18 | . . . . . . . 1 . . . . . . 11 . . . . . . 6 . Part Schematic 12 | . . . . . . . . . . . . . . 8 . . . . . . 4 . Robot Schematic 4 | . . . . . . . . . . . . . . 4 . . . . . . . . Robot Analysis 4 | . . . . . . . . . . . . . . . . . . . . . 4 . Prototype ID Bank 8 | . . . . . . 1 . . . . . . . 3 . . . . . . 4 . Open Door 5 | . . . . . . 2 . . . . . 1 . . . . . . 1 1 . . Open DSF 2 | . . . . . . . . . . . . . . . . 1 . 1 . . . . Proto ID Catalog 1 | . . . 1 . . . . . . . . . . . . . . . . . . . Fabricator Hacks 3 | . . . . . . . . . 1 . 2 . . . . . . . . . . . Network Status 2 | . . . . . . . . . . . 2 . . . . . . . . . . . Build 1 | . . . . . . . . . 1 . . . . . . . . . . . . . Repair Station Hacks . | . . . . . . . . . . . . . . . . . . . . . . . Recycling Unit Hacks 2 | . . . . . . . 2 . . . . . . . . . . . . . . . Retrieve Matter 2 | . . . . . . . 2 . . . . . . . . . . . . . . . Scanalyzer 1 | . . . . . . . . . . . . . . . . . . 1 . . . . Retrieve Study 1 | . . . . . . . . . . . . . . . . . . 1 . . . . Garrison Access Hacks 1 | . . . . . . . . . . . 1 . . . . . . . . . . . Unlock Access 1 | . . . . . . . . . . . 1 . . . . . . . . . . . Unauthorized Hacks 9 | . . . . . . 1 8 . . . . . . . . . . . . . . . Terminals . | . . . . . . . . . . . . . . . . . . . . . . . Fabricators . | . . . . . . . . . . . . . . . . . . . . . . . Repair Stations . | . . . . . . . . . . . . . . . . . . . . . . . Recycling Units 9 | . . . . . . 1 8 . . . . . . . . . . . . . . . Tunnel 9 | . . . . . . 1 8 . . . . . . . . . . . . . . . Scanalyzers . | . . . . . . . . . . . . . . . . . . . . . . . Garrison Access . | . . . . . . . . . . . . . . . . . . . . . . . Data Cores Recovered 2 | . . . . . . . . . 1 . 1 . . . . . . . . . . . Used 1 | . . . . . . . . . 1 . . . . . . . . . . . . . Hacking Detections 13 | . . . . . . 3 3 . 1 . 2 . . . . 1 . 3 . . . . Full Trace Events 1 | . . . . . . . . . . . . . . . . . . 1 . . . . Feedback Events . | . . . . . . . . . . . . . . . . . . . . . . . Feedback Blocked . | . . . . . . . . . . . . . . . . . . . . . . . Robot Schematics Acquired 4 | . . . . . . . . . . . . . . 4 . . . . . . . . Robots Built . | . . . . . . . . . . . . . . . . . . . . . . . Authchips . | . . . . . . . . . . . . . . . . . . . . . . . Time . | . . . . . . . . . . . . . . . . . . . . . . . Total Robot Build Rating . | . . . . . . . . . . . . . . . . . . . . . . . Part Schematics Acquired 12 | . . . . . . . . . . . . . . 8 . . . . . . 4 . Parts Built 1 | . . . . . . . . . 1 . . . . . . . . . . . . . Authchips . | . . . . . . . . . . . . . . . . . . . . . . . Time 128 | . . . . . . . . . 128 . . . . . . . . . . . . . Total Part Build Rating 8 | . . . . . . . . . 8 . . . . . . . . . . . . . Part Studies Acquired 1 | . . . . . . . . . . . . . . . . . . 1 . . . . Parts Repaired . | . . . . . . . . . . . . . . . . . . . . . . . Time . | . . . . . . . . . . . . . . . . . . . . . . . Parts Recycled . | . . . . . . . . . . . . . . . . . . . . . . . Recycled Matter . | . . . . . . . . . . . . . . . . . . . . . . . Retrieved Matter 177 | . . . . . . . 177 . . . . . . . . . . . . . . . Retrieved Components . | . . . . . . . . . . . . . . . . . . . . . . . Parts Scanalyzed . | . . . . . . . . . . . . . . . . . . . . . . . Part Schematics Acquired . | . . . . . . . . . . . . . . . . . . . . . . . Parts Damaged . | . . . . . . . . . . . . . . . . . . . . . . . Bothacking | -11 -10 -10 -10 -9 -8 -8 -8 -8 -6 -6 -6 -6 -6 -6 -5 -5 -5 -4 -4 -4 -4 -3 ------------ Run | Yrd Mat Min Exi Min Mat Sto Rec Scr Fac Was Fac Low Low Dat Pro Fac DSF Fac Upp Upp Zhi Pro Used RIF Installer . | . . . . . . . . . . . . . . . . . . . . . . . Robots Hacked . | . . . . . . . . . . . . . . . . . . . . . . . Non-combat . | . . . . . . . . . . . . . . . . . . . . . . . Combat . | . . . . . . . . . . . . . . . . . . . . . . . Robot Hacks Applied . | . . . . . . . . . . . . . . . . . . . . . . . Relay Couplers Released 4 | . . . . . . . . . . . 4 . . . . . . . . . . . Programmers 4 | . . . . . . . . . . . 4 . . . . . . . . . . . Fabnet Peak Effective % . | . . . . . . . . . . . . . . . . . . . . . . . Robots Rewired 7 | . . . . . . . 3 . . . . . 2 . 2 . . . . . . . Allies Hacked . | . . . . . . . . . . . . . . . . . . . . . . . Hacks Repelled . | . . . . . . . . . . . . . . . . . . . . . . . Allies | -11 -10 -10 -10 -9 -8 -8 -8 -8 -6 -6 -6 -6 -6 -6 -5 -5 -5 -4 -4 -4 -4 -3 -------- Run | Yrd Mat Min Exi Min Mat Sto Rec Scr Fac Was Fac Low Low Dat Pro Fac DSF Fac Upp Upp Zhi Pro Total Allies 38 | . . 1 . . . 10 3 . . 19 . . 2 . 3 . . . . . . . Largest Group 19 | . . 1 . . . 10 9 9 9 19 17 5 5 4 4 . . . . . . . Highest-Rated Group 684 | . . 31 . . . 173 131 131 131 684 633 191 178 153 153 . . . . . . . Highest-Rated Ally 96 | . . 31 . . . 29 16 16 16 50 50 46 46 46 96 . . . . . . . Total Orders 2 | . . . . . . . . . 2 . . . . . . . . . . . . . STAY 1 | . . . . . . . . . 1 . . . . . . . . . . . . . FOLLOW 1 | . . . . . . . . . 1 . . . . . . . . . . . . . Ally Attacks 347 | . . 9 . . . 21 18 . 34 55 126 . 30 . 54 . . . . . . . Total Damage 9389 | . . 149 . . . 303 254 . 318 2644 3283 . 757 . 1681 . . . . . . . Kills 66 | . . 2 . . . 3 2 . 5 7 24 . 5 . 18 . . . . . . . Allies Corrupted . | . . . . . . . . . . . . . . . . . . . . . . . Allies Melted . | . . . . . . . . . . . . . . . . . . . . . . . Intel | -11 -10 -10 -10 -9 -8 -8 -8 -8 -6 -6 -6 -6 -6 -6 -5 -5 -5 -4 -4 -4 -4 -3 ------- Run | Yrd Mat Min Exi Min Mat Sto Rec Scr Fac Was Fac Low Low Dat Pro Fac DSF Fac Upp Upp Zhi Pro Active Infowar (turns) 7210 | . . . . . . . 584 1117 725 256 833 888 889 57 1033 3 172 226 . 427 . . Optics 6783 | . . . . . . . 584 1117 725 256 833 888 889 57 1033 3 172 226 . . . . Terrain 427 | . . . . . . . . . . . . . . . . . . . . 427 . . Robot Analysis Total 4 | . . . . . . . . . . . . . . . . . . . . . 4 . Derelict Logs Recovered 7 | . . 2 . . . . . . . . . 2 . . 2 . . . . 1 . . Drone Launches . | . . . . . . . . . . . . . . . . . . . . . . . Drone Recoveries . | . . . . . . . . . . . . . . . . . . . . . . . Exploration | -11 -10 -10 -10 -9 -8 -8 -8 -8 -6 -6 -6 -6 -6 -6 -5 -5 -5 -4 -4 -4 -4 -3 ------------- Run | Yrd Mat Min Exi Min Mat Sto Rec Scr Fac Was Fac Low Low Dat Pro Fac DSF Fac Upp Upp Zhi Pro Turns Passed 11144 | 68 188 389 108 10 385 1089 1072 1117 725 256 833 888 889 57 1033 3 172 317 232 673 250 390 Spaces Moved 9188 | 61 157 349 213 19 217 631 767 874 710 239 615 771 711 112 764 7 149 375 329 618 201 299 Core 653 | 16 . 77 213 19 138 . . . . 4 . . . . 1 . 55 91 . 39 . . Treads 191 | . . . . . . . . . . . . . . . 191 . . . . . . . Legs 3350 | 45 157 272 . . 79 631 767 874 28 . . . . . 54 . . . . . 144 299 Wheels 55 | . . . . . . . . . . . . . . . . . 55 . . . . . Hover . | . . . . . . . . . . . . . . . . . . . . . . . Flight 4939 | . . . . . . . . . 682 235 615 771 711 112 518 7 39 284 329 579 57 . Fastest Speed 31 | 50 120 50 50 50 50 120 120 120 39 39 32 109 109 34 35 35 35 34 31 35 35 120 Average Speed 94 | 101 120 104 50 50 105 130 120 120 44 54 95 109 109 42 112 35 66 42 38 77 95 120 Slowest Speed 295 | 120 120 120 50 50 150 190 120 120 125 200 199 109 109 109 295 35 100 200 119 200 120 120 Overloaded Moves . | . . . . . . . . . . . . . . . . . . . . . . . Propulsion Burnouts . | . . . . . . . . . . . . . . . . . . . . . . . Robots Hopped 5 | . . . . . . 1 . . 1 . . . . . 1 . . . 2 . . . Potential Cave-ins 2 | . . . . . . . . . . . . . . . . . . . . 2 . . Cave-ins Triggered 1 | . . . . . . . . . . . . . . . 1 . . . . . . . Exploration Rate (%) 51 | 3 34 79 61 8 24 84 98 56 12 85 24 83 68 74 83 1 94 13 50 59 60 35 Regions Visited 22 Branch Regions 14 Pre-discovered Areas 15 | . . 1 . . . 1 8 . . . . . . 1 . . . . . 1 3 . Known Exits Taken 4 | . . . . . . . . . . . . . . . . 1 . 1 . 1 1 . Unknown Exits Taken 15 | 1 1 1 1 1 1 1 1 1 . . 1 1 1 1 1 . . . 1 . . . Scrap Searched 20 | . . 2 . . . . . 2 . . . 2 6 . 4 . . . . 2 . 2 Spaces Dug 48 | . . . . . . . . . 21 . . 4 . . 22 . . . . 1 . . Terrain Destroyed 727 | . . . . . 110 12 . . 206 57 . 6 102 . 151 . . . 11 66 . 6 Melee . | . . . . . . . . . . . . . . . . . . . . . . . Projectile 37 | . . . . . . 1 . . 6 1 . 6 3 . 8 . . . 1 5 . 6 AOE 690 | . . . . . 110 11 . . 200 56 . . 99 . 143 . . . 10 61 . . Terrain Rammed . | . . . . . . . . . . . . . . . . . . . . . . . Walls Destroyed . | . . . . . . . . . . . . . . . . . . . . . . . Machines Disabled . | . . . . . . . . . . . . . . . . . . . . . . . Actions | -11 -10 -10 -10 -9 -8 -8 -8 -8 -6 -6 -6 -6 -6 -6 -5 -5 -5 -4 -4 -4 -4 -3 --------- Run | Yrd Mat Min Exi Min Mat Sto Rec Scr Fac Was Fac Low Low Dat Pro Fac DSF Fac Upp Upp Zhi Pro Total 11077 | 67 156 374 213 18 309 769 879 943 1078 362 793 805 799 121 887 6 218 526 411 785 244 314 Wait 1231 | . . 20 . . 31 62 39 59 305 93 115 22 45 4 34 . 62 136 62 128 9 5 Move 9156 | 60 156 348 212 18 216 628 766 873 708 238 613 770 710 111 761 6 148 374 324 617 200 299 Hop 5 | . . . . . . 1 . . 1 . . . . . 1 . . . 2 . . . Pick Up 43 | 4 . 3 1 . 5 6 . 5 4 . 1 . . . 2 . . . 1 5 6 . Fast Attach 92 | . . . . . 6 8 . . 6 5 15 3 3 3 8 . 7 11 2 5 10 . Attach 53 | 3 . . . . 8 4 1 2 8 6 1 . . . 5 . . . 2 7 5 1 Detach 27 | . . . . . 3 1 . 1 6 7 1 . . . 3 . . . 1 3 1 . Swap 18 | . . . . . . 2 . 1 3 . 3 . 4 . 2 . . . . 1 1 1 Drop 65 | . . 3 . . . 8 1 2 12 4 11 3 2 3 1 . 1 3 3 3 5 . Fire 255 | . . . . . 40 48 17 . 25 9 33 6 22 . 26 . . . 1 13 7 8 Melee 20 | . . . . . . . . . . . . . . . 4 . . 2 13 1 . . Ram 2 | . . . . . . . . . . . . . . . . . . . . 2 . . Kick . | . . . . . . . . . . . . . . . . . . . . . . . Crush . | . . . . . . . . . . . . . . . . . . . . . . . Escape Stasis 1 | . . . . . . 1 . . . . . . . . . . . . . . . . Rewire 109 | . . . . . . . 55 . . . . 1 13 . 40 . . . . . . . Trap . | . . . . . . . . . . . . . . . . . . . . . . . Miscellaneous . | . . . . . . . . . . . . . . . . . . . . . . . Route ------- -11/Scrapyard -10/Materials (discovered 2 exits: [*Mat] / [*Min]) -10/Mines (discovered 2 exits: [*Mat] / *Exi) -10/Exiles -9/Mines -8/Materials (discovered 2 exits: [*Fac] / *Sto) -8/Storage (discovered 2 exits: [*Fac] / *Rec) -8/Recycling (discovered 2 exits: *Fac / [*Scr]) -8/Scraptown -6/Factory -6/Waste -6/Factory (discovered 3 exits: *Fac / *Low / Gar) -6/Lower Caves -6/Lower Caves -6/Data Miner -5/Proximity Caves -5/Factory (discovered 2 exits: Fac / DSF) -5/DSF -4/Factory -4/Upper Caves -4/Upper Caves (discovered 2 exits: *Res / *Zhi) -4/Zhirov -3/Proximity Caves History --------- Turn | Location | Event 3 | -11/Scrapyard | Discovered new exit (range 16) 69 | -11/Scrapyard | Entered Materials 192 | -10/Materials | Discovered new exit (range 5) 239 | -10/Materials | Discovered new exit (range 16) 257 | -10/Materials | Entered Mines 260 | -10/Mines | Received a Mining Laser from a helpful Derelict 317 | -10/Mines | Assembled infested the area 317 | -10/Mines | Build established: Mutant 367 | -10/Mines | Learned Materials terminal intel 600 | -10/Mines | Received a Rocket Launcher from a helpful Derelict 610 | -10/Mines | Core integrity fell below 50% 614 | -10/Mines | Discovered new exit (range 10) 617 | -10/Mines | Core integrity fell below 20% 644 | -10/Mines | Deemed a non-threat by the Exiles lab entrance 644 | -10/Mines | Discovered new exit (range 5) 646 | -10/Mines | Entered Exiles 659 | -10/Exiles | Met 8R-AWN 668 | -10/Exiles | Met EX-HEX 682 | -10/Exiles | Met EX-BIN 688 | -10/Exiles | Aligned with FarCom system 689 | -10/Exiles | Given EX-Vault access code 701 | -10/Exiles | Opened EX-Vault 705 | -10/Exiles | Found YOLO Cannon 716 | -10/Exiles | Warned to stay clear of 0b10 Research branches 731 | -10/Exiles | Met EX-DEC 749 | -10/Exiles | Discovered new exit (range 12) 754 | -10/Exiles | Left Exiles lab with YOLO Cannon 754 | -10/Exiles | Entered Mines 760 | -9/Mines | Discovered new exit (range 6) 764 | -9/Mines | Entered Materials 764 | -8/Materials | Evolved 4 slots: Propulsion x2, Utility x1, Weapon x1 765 | -8/Materials | Loaded intel: 12 terminal locations 1123 | -8/Materials | Discovered new exit (range 16) 1126 | -8/Materials | Discovered new exit (range 13) 1149 | -8/Materials | Entered Storage 1454 | -8/Storage | Assisted by bots powering up and referring to "LRC-V3" 1587 | -8/Storage | Discovered new exit (range 15) 1709 | -8/Storage | Core integrity fell below 50% 1864 | -8/Storage | Garrison activated, responded to threat 2064 | -8/Storage | Build established: Commander-Skirmisher 2174 | -8/Storage | Discovered new exit (range 11) 2238 | -8/Storage | Entered Recycling 2238 | -8/Recycling | Accompanied by 8 allies 2275 | -8/Recycling | P-60 Hacker assimilated allied Trooper 3e 2654 | -8/Recycling | Discovered new exit (range 15) 3238 | -8/Recycling | Scanned before Scraplab entrance 3255 | -8/Recycling | Entered Scraplab 3265 | -8/Recycling | Discovered new exit (range 3) 3310 | -8/Recycling | Entered Scraptown 3310 | -8/Scraptown | Accompanied by 9 allies 3681 | -8/Scraptown | Turned away by UFD registrar 3715 | -8/Scraptown | Visited TADAMA 3758 | -8/Scraptown | Visited Assassins FH 3776 | -8/Scraptown | Heard Great Nut preacher, LISTEN AND RECITE! 3794 | -8/Scraptown | Discovered new exit (range 9) 3878 | -8/Scraptown | Visited Symbiants 3887 | -8/Scraptown | Visited Fellowship of the Rings 3908 | -8/Scraptown | Visited IN-MT5's Study 4079 | -8/Scraptown | Visited Red Mages 4427 | -8/Scraptown | Entered Factory 4427 | -6/Factory | Accompanied by 9 allies 4427 | -6/Factory | Evolved 4 slots: Power x1, Propulsion x1, Utility x2 4642 | -6/Factory | Fabricated Impulse Thruster Array (x1) 4747 | -6/Factory | Build established: Commander-Mutant 5088 | -6/Factory | Lost 5 allies 5130 | -6/Factory | Garrison activated, responded to threat 5150 | -6/Factory | Found Launcher Loader 5152 | -6/Factory | Manually triggered Chute Trap 5152 | -6/Factory | Sucked down chute 5152 | -6/Factory | Entered Waste 5167 | -6/Waste | EMP discharged 5170 | -6/Waste | Spotted C-40 Crusher 5175 | -6/Waste | Spotted C-40 Crusher 5178 | -6/Waste | Spotted C-40 Crusher 5180 | -6/Waste | Spotted C-40 Crusher 5251 | -6/Waste | Spotted C-40 Crusher 5267 | -6/Waste | EMP discharged 5267 | -6/Waste | System corruption reached 10% 5276 | -6/Waste | Met Warlord forces unprepared to attack 5279 | -6/Waste | Destroyed C-40 Crusher 5285 | -6/Waste | Allies destroyed C-40 Crusher 5288 | -6/Waste | Spotted C-40 Crusher 5292 | -6/Waste | Allies destroyed C-40 Crusher 5293 | -6/Waste | Allies destroyed C-40 Crusher 5295 | -6/Waste | Allies destroyed C-40 Crusher 5299 | -6/Waste | Allies destroyed C-40 Crusher 5313 | -6/Waste | Discovered new exit (range 19) 5367 | -6/Waste | EMP discharged 5408 | -6/Waste | Entered Factory 5408 | -6/Factory | Accompanied by 17 allies 5513 | -6/Factory | Lost 3 allies 5516 | -6/Factory | Allied Derelicts emerged from ambush trap array 5525 | -6/Factory | Identified exit to Garrison 5565 | -6/Factory | Discovered new exit (range 10) 5929 | -6/Factory | Lost 3 parts (1p2n) 6046 | -6/Factory | Lost 4 allies 6105 | -6/Factory | Build established: Scavenger-Gunner 6108 | -6/Factory | First assault squad dispatched 6190 | -6/Factory | Discovered new exit (range 10) 6241 | -6/Factory | Entered Lower Caves 6241 | -6/Lower Caves | Accompanied by 5 allies 6697 | -6/Lower Caves | Learned Factory security intel 6758 | -6/Lower Caves | Build established: Gunner 6997 | -6/Lower Caves | Encountered a Warlord checkpoint 7058 | -6/Lower Caves | Spotted B-75 Beast 7079 | -6/Lower Caves | Discovered new exit (range 7) 7095 | -6/Lower Caves | Learned 4 Factory zone layouts 7129 | -6/Lower Caves | Entered another Lower Caves area 7129 | -6/Lower Caves | Accompanied by 3 allies 7144 | -6/Lower Caves | Spotted B-75 Beast 7145 | -6/Lower Caves | Destroyed B-75 Beast 7567 | -6/Lower Caves | Encountered a Warlord checkpoint 7620 | -6/Lower Caves | Attracted the attention of an 0b10 checkpoint 7647 | -6/Lower Caves | Destroyed 7 combat bots 7723 | -6/Lower Caves | Discovered new exit (range 13) 7733 | -6/Lower Caves | Attracted the attention of an 0b10 outpost 7734 | -6/Lower Caves | Core integrity fell below 50% 7758 | -6/Lower Caves | Destroyed 7 combat bots 8018 | -6/Lower Caves | Entered Data Miner 8018 | -6/Data Miner | Accompanied by 4 allies 8018 | -6/Data Miner | Discovered new exit (range 6) 8028 | -6/Data Miner | Met Data Miner 8036 | -6/Data Miner | Learned location of Section 7 (-3) 8036 | -6/Data Miner | Acquired the access code to Warlord's prototype stash 8041 | -6/Data Miner | Received God Mode back door access code from Data Miner 8075 | -6/Data Miner | Entered Proximity Caves 8075 | -5/Proximity Caves | Accompanied by 4 allies 8344 | -5/Proximity Caves | Attacked by a faux Warlord 8351 | -5/Proximity Caves | Crushed by falling debris 8375 | -5/Proximity Caves | Escorted by Enhanced Grunt 8406 | -5/Proximity Caves | Lost 7 parts (2p2n2u1w) 8480 | -5/Proximity Caves | Learned Factory emergency access door positions 8816 | -5/Proximity Caves | Attracted the attention of an 0b10 outpost 8912 | -5/Proximity Caves | Lost 5 parts (1p1n3w) 8952 | -5/Proximity Caves | Core integrity fell below 20% 9104 | -5/Proximity Caves | Discovered new exit (range 9) 9108 | -5/Proximity Caves | Entered Factory 9108 | -5/Factory | Evolved 2 slots: Propulsion x1, Utility x1 9109 | -5/Factory | Identified exit to Factory 9110 | -5/Factory | Identified exit to DSF 9111 | -5/Factory | Entered DSF 9121 | -5/DSF | Assembled infested the area 9141 | -5/DSF | Additional patrols routed to DSF 9154 | -5/DSF | Build established: Mutant 9263 | -5/DSF | Discovered exit to Factory (range 19) 9267 | -5/DSF | Core integrity fell below 50% 9283 | -5/DSF | Entered Factory 9283 | -4/Factory | Evolved 2 slots: Utility x2 9294 | -4/Factory | Lost 3 parts (2n1u) 9331 | -4/Factory | Found Prototype Hackware 9331 | -4/Factory | Identified Exp. System Shield 9526 | -4/Factory | Found Prototype Processor 9526 | -4/Factory | Identified Exp. Signal Interpreter 9547 | -4/Factory | Build established: Hacker-Mutant 9599 | -4/Factory | Discovered new exit (range 4) 9600 | -4/Factory | Identified exit to Upper Caves 9600 | -4/Factory | Entered Upper Caves 9645 | -4/Upper Caves | Spotted B-86 Titan 9828 | -4/Upper Caves | Discovered new exit (range 11) 9832 | -4/Upper Caves | Entered another Upper Caves area 9836 | -4/Upper Caves | Discovered new exit (range 8) 9837 | -4/Upper Caves | Encountered a Warlord checkpoint 9914 | -4/Upper Caves | Identified exit to Research 10331 | -4/Upper Caves | YOLO Cannon suddenly exploded 10332 | -4/Upper Caves | Core integrity fell below 50% 10359 | -4/Upper Caves | Core integrity fell below 20% 10397 | -4/Upper Caves | Lost 9 parts (2n4u3w) 10502 | -4/Upper Caves | Discovered new exit (range 5) 10505 | -4/Upper Caves | Identified exit to Zhirov 10505 | -4/Upper Caves | Entered Zhirov 10505 | -4/Zhirov | Discovered new exit (range 3) 10512 | -4/Zhirov | Met Zhirov 10573 | -4/Zhirov | Attached CPS modules to B-86 Titan. 10581 | -4/Zhirov | Attached CPS modules to Q700-d. 10656 | -4/Zhirov | Found Alien Artifact 10656 | -4/Zhirov | Identified Integrated Dissipator 10656 | -4/Zhirov | Installed Integrated Dissipator, increased core heat dissipation (+20) 10673 | -4/Zhirov | Found Alien Artifact 10711 | -4/Zhirov | Learned location of Command (-1) 10719 | -4/Zhirov | Zhirov requested help retrieving the SGEMP Prototype 10752 | -4/Zhirov | Identified exit to Proximity Caves 10755 | -4/Zhirov | Entered Proximity Caves 11145 | -3/Proximity Caves | Destroyed by G-67 Veteran with Field Laser Last Messages --------------- Acquired 36 matter. Searching scrap... Found Adv. Melee Analysis Suite. Found 65 Matter. Acquired 46 matter. Core Analyzer destroyed. Lgt. Antimatter Reactor destroyed. Slug penetrates G-67 Veteran. Slug penetrates Wall. G-67 Veteran destroyed. Acquired 30 matter. Acquired 5 matter. Field Laser fries itself beyond repair. Slug penetrates G-73 Enforcer. Acquired 5 matter. G-73 Enforcer suffers critical hit (Meltdown). Slug penetrates Wall. Acquired 5 matter. Adv. Heat Sink fries itself beyond repair. Railgun destroyed. Map ----- +----------------------------------------------------+ | ?????????????????????????????????????????????????? | | ?????????????????????????????????????????????????? | | ?????????????????????????????????????????????????? | | ?????????????????????????????????????????????????? | | ?????????????????????????????????????????????????? | | ?????????????????????????????????????????????????? | | ?????????????????????????????????????????????????? | | ?????????????????????????????????????????????????? | | ?????????????????????????????????????????????????? | | ?????????????????????????????????????????????????? | | ?????????????????????????????????????????????????? | | ?????????????????????????????????????????????????? | | ?????????????????????????????????????????????????? | | ?????????????????????????????????????????????????? | | ?????????????????????????????????????????????????? | | ?????????????????????????????????????????????????? | | ?????##??????????????????????????????????????????? | | ?????# ##????????????????????????????????????????? | | ?????# #??????????####??????????????????????????? | | ?????# #??????????# ??????????????????????????? | | ?????# ##?????????# #??????????????????????????? | | ##???# ########??# #??????????????????????????? | | #???# ## #??# #######????????????????????? | | #???# %! #??# ##;=;;##???????????????????? | | #???## #### #;g % ##??????????????????? | | #????## @! g####???????????????? | | ######## ## ###### ?? | | ######; ?? | | ##?????# # ?? | | #### ### #??????# #?#### #???? | | "" "" ""# ### ##??????# #???????? ##???? | | T #?#########??????? #???????????????? | | "# #????????????????? #???????????????? | | ##??????????????? #???????????????? | | #??????????????? #???????????????? | | ! # ?????????????? ##???????????????? | | """"# ????????????? ##?????????????????? | | """"# ????????????? ???????????????????? | | "" """"# ?????????????# ???????????????????? | | # ######## #????????????## ???????????????????? | | #????????????#????????????????????? | | #?????????????????????????????????? | | ### ### #?????????????????????????????????? | | ???# ##?? ????????????????????????????????????? | | ???? #?????????????????????????????????????????? | | ????? ##?????????????????????????????????????????? | | ????? #??????????????????????????????????????????? | | ??????#??????????????????????????????????????????? | | ##???????????????????????????????????????????????? | | %????????????????????????????????????????? | +----------------------------------------------------+ Best States ------------- Heat Dissipation 64 Energy Generation 41 Energy Capacity 910 Matter Stores 300 Matter Capacity 300 Sight Range 20 Terrain Scan Range 18 Terrain Scan Density 10 EM Shielding 4 Corruption Block 9 Armor Coverage 225 Resistance: TH 30 Point Defense Rating 160 Evasion (%) 63 Launcher Accuracy 30 Core Analysis 6 Armor Integrity Analysis 30 Recoil Reduction 2 Particle Charging 15 Offensive Hacking 26 Defensive Hacking 16 Item Schematics ----------------- Combat Drone Bay | -6/Data Miner | Free Lgt. Regenerative Plating | -6/Data Miner | Free Cld. Gravmag System | -6/Data Miner | Free Imp. Matter Compressor | -6/Data Miner | Free Thunder Hammer | -6/Data Miner | Free Myomer Leg | -6/Data Miner | Free Imp. Armor Integrity Analyzer | -6/Data Miner | Free Hardcell Cannon | -6/Data Miner | Free Assault Drone Bay | -4/Zhirov | Free Exp. Heat Sink | -4/Zhirov | Free Exp. Optical Array | -4/Zhirov | Free Imp. Arc Thrower | -4/Zhirov | Free Robot Schematics ------------------ B-60 Warrior | -6/Data Miner | Free L-41 Fighter | -6/Data Miner | Free M-22 Extractor | -6/Data Miner | Free A-15 Conveyor | -6/Data Miner | Free Fabricated ------------ Impulse Thruster Array | x1 | -6/Factory | Preloaded Repaired ---------- Nothing Studied --------- Field Propulsion Drive | -4/Factory | Hacked Alien Tech Used ----------------- Integrated Dissipator Achievements -------------- No Explosion For You YOLO Challenges ------------ None Game ------ Seed DeuteriumSeismicStick Manual? 0 Play Time 01:34:46 Cumulative 261.2 hours Start 2026.04.11 @ 11:05:20 End 2026.04.11 @ 13:08:02 Sessions 1 Manual Loads 0 Difficulty Rogue Special Mode None Game No. 693 Rogue 691 Adventurer 2 Explorer 0 Win Type - Total 0 Types 0/0/0/0/0/0/0/0/0/0 Lore% 67 Gallery% 63 Achievement% 43 Wizard Run 0 Options --------- Layout 2 ASCII 0 Keyboard 0 Movement Mouse Keybinds 0 Fullscreen 1 Font 24/Smallcaps Map View 50x44 Zoom Use 0% Tactical HUD 0 Map Filters NONE Filters NONE Steam 1 RUN: 429d793a-de42-4ede-bb7b-2f590226035f